bitfinex/quotes_BTCUSD_20250225
["timestamp","ask_amount","ask_price","bid_price","bid_amount"]
[1740497488294,0.87980577,86540.0,86539.0,0.0120998]
[1740497488499,0.82194689,86540.0,86539.0,0.0120998]
[1740497489848,0.82136086,86540.0,86539.0,0.0120998]
[1740497490325,0.57800278,86540.0,86539.0,0.0120998]
[1740497490530,0.25010278,86557.0,86539.0,0.0129509]
[1740497490734,0.06946063,86556.0,86539.0,0.03735829]
[1740497490899,0.06946063,86556.0,86539.0,0.0129509]
[1740497491301,0.17333,86540.0,86539.0,0.0129509]
[1740497491505,0.24335808,86540.0,86539.0,0.0129509]
[1740497491954,0.3,86563.0,86539.0,0.0129509]
[1740497492157,0.64726316,86562.0,86540.0,0.09244334]
[1740497492366,0.25010278,86574.0,86552.0,0.09244334]
[1740497492678,0.25010278,86592.0,86574.0,0.173262]
[1740497492853,0.05670637,86593.0,86574.0,0.00161678]
[1740497493009,0.05670637,86593.0,86572.0,0.09244334]
[1740497493211,0.57961749,86592.0,86553.0,0.034721]
[1740497493442,0.25010278,86591.0,86570.0,0.09244334]
[1740497493644,0.00161471,86590.0,86561.0,0.09244334]
[1740497493844,0.25010278,86591.0,86561.0,0.09244334]
[1740497494050,0.25010278,86589.0,86570.0,0.07744334]
[1740497494198,0.17325,86580.0,86570.0,0.07744334]
[1740497494398,0.17325,86580.0,86554.0,0.35753096]
[1740497494399,0.31792849,86574.0,86554.0,0.01271643]
[1740497494627,0.06839281,86572.0,86552.0,0.034729]
[1740497494829,0.173304,86553.0,86552.0,0.034729]
[1740497495102,0.57800278,86553.0,86523.0,0.231152]
[1740497495282,0.173306,86552.0,86529.0,0.173351]
[1740497495476,0.57800278,86553.0,86511.0,0.0458]
[1740497495629,0.57800278,86553.0,86524.0,0.231148]
[1740497495815,0.06959413,86552.0,86525.0,0.09406107]
[1740497496016,0.173312,86549.0,86528.0,0.173353]
[1740497496219,0.17333,86540.0,86525.0,0.09244334]
[1740497496460,0.24335808,86540.0,86501.0,0.16934334]
[1740497496662,0.49346086,86540.0,86514.0,0.231174]
[1740497496867,0.49346086,86540.0,86501.0,0.16934334]
[1740497496868,0.25010278,86540.0,86539.0,0.1862829]
[1740497497070,0.57800278,86574.0,86539.0,0.14532672]
[1740497497276,0.25010278,86581.0,86556.0,0.231064]
[1740497497470,0.25010278,86581.0,86555.0,0.09244334]
[1740497497646,0.25010278,86581.0,86563.0,0.173283]
[1740497497853,0.25010278,86587.0,86564.0,0.20619087]
[1740497498053,0.57800278,86618.0,86574.0,0.26570534]
[1740497498281,0.57800278,86618.0,86574.0,0.09244334]
[1740497498282,0.00161471,86617.0,86574.0,0.09244334]
[1740497498510,0.17324,86585.0,86574.0,0.09244334]
[1740497498712,0.00161471,86584.0,86564.0,0.09244334]
[1740497498923,0.00161471,86584.0,86480.0,0.05720021]
[1740497498924,0.31812862,86574.0,86530.0,0.0791]
[1740497499072,0.25010278,86573.0,86547.0,0.11536486]
[1740497499308,0.25010278,86573.0,86555.0,0.09244334]
[1740497499493,0.231024,86571.0,86555.0,0.09244334]
[1740497499721,0.07007426,86570.0,86540.0,0.173329]
[1740497499893,0.173299,86556.0,86532.0,0.173346]
[1740497500095,0.25010278,86568.0,86547.0,0.00924433]
[1740497500460,0.06882657,86567.0,86547.0,0.00924433]
[1740497500662,0.06882657,86567.0,86531.0,0.00161743]
[1740497500868,0.57961749,86566.0,86539.0,0.0129509]
[1740497501070,0.06916027,86565.0,86539.0,0.0129509]
[1740497501274,0.57800278,86566.0,86549.0,0.09244334]
[1740497501465,0.17219621,86540.0,86539.0,0.0129509]
[1740497501603,0.25010278,86565.0,86539.0,0.0129509]
[1740497501808,1.44671749,86564.0,86539.0,0.0129509]
[1740497502014,0.17333,86540.0,86539.0,0.0129509]
[1740497502215,0.82297557,86540.0,86539.0,0.0129509]
[1740497502411,0.84007038,86540.0,86539.0,0.0129509]
[1740497503259,0.82136086,86540.0,86539.0,0.0129509]
[1740497503463,1.12136086,86540.0,86539.0,0.0129509]
[1740497503687,1.12136086,86540.0,86539.0,0.0039509]
[1740497503895,0.3279,86540.0,86539.0,0.0039509]
[1740497504119,0.25010278,86541.0,86539.0,0.0039509]
[1740497504956,0.3279,86560.0,86540.0,0.09244334]
[1740497505160,0.25010278,86571.0,86541.0,0.00963942]
[1740497505369,0.231043,86564.0,86541.0,0.00963942]
[1740497505631,0.06916027,86563.0,86541.0,0.00963942]
[1740497505885,0.17333,86540.0,86539.0,0.0039509]
[1740497506089,0.42343278,86540.0,86539.0,0.0039509]
[1740497506299,0.72343278,86540.0,86539.0,0.0039509]
[1740497506502,0.79346086,86540.0,86539.0,0.0039509]
[1740497506666,1.06188782,86540.0,86493.0,0.0801]
[1740497506857,1.06188782,86540.0,86490.0,0.09236755]
[1740497506858,0.07126346,86522.0,86490.0,0.09236755]
[1740497507077,0.25171749,86537.0,86501.0,0.20619087]
[1740497507267,0.07193147,86522.0,86501.0,0.09244334]
[1740497507483,0.173408,86501.0,86481.0,0.0485]
[1740497507681,0.173408,86501.0,86459.0,0.0832]
[1740497507682,0.25010278,86501.0,86459.0,0.0832]
[1740497507878,0.49614381,86501.0,86458.0,0.04896667]
[1740497508038,0.65063581,86501.0,86459.0,0.09244334]
[1740497508239,0.57800278,86501.0,86468.0,0.09244334]
[1740497508437,0.82404381,86501.0,86468.0,0.09244334]
[1740497509072,0.65063581,86501.0,86468.0,0.09244334]
[1740497509506,0.82404381,86501.0,86468.0,0.09244334]
[1740497509718,1.12404381,86501.0,86461.0,0.173487]
[1740497509853,1.12404381,86501.0,86462.0,0.09244334]
[1740497510057,0.82404381,86501.0,86462.0,0.09244334]
[1740497510739,1.12404381,86501.0,86462.0,0.09244334]
[1740497511210,1.12404381,86501.0,86458.0,0.00166667]
[1740497511348,1.12404381,86501.0,86460.0,0.09244334]
[1740497512169,0.54604103,86501.0,86460.0,0.09244334]
[1740497512617,1.23790077,86501.0,86460.0,0.09244334]
[1740497513022,1.12404381,86501.0,86460.0,0.09244334]
[1740497514234,0.82404381,86501.0,86460.0,0.09244334]
[1740497515041,0.82404381,86501.0,86477.0,0.173455]
[1740497515247,0.82404381,86501.0,86469.0,0.09244334]
[1740497515704,0.82404381,86501.0,86460.0,0.09244334]
[1740497516193,1.12404381,86501.0,86500.0,0.6498476]
[1740497519190,2.13864381,86501.0,86500.0,6.7e-07]
[1740497519414,2.13864381,86501.0,86458.0,0.00166667]
[1740497519415,0.173482,86464.0,86458.0,0.00166667]
[1740497519636,0.26593678,86464.0,86458.0,0.00166667]
[1740497519861,0.49869069,86464.0,86458.0,0.00166667]
[1740497520094,0.32520869,86464.0,86458.0,0.00166667]
[1740497520570,0.49869069,86464.0,86458.0,0.00166667]
[1740497520843,0.79869069,86464.0,86458.0,0.00166667]
[1740497521089,0.79869069,86464.0,86451.0,0.01120947]
[1740497521090,0.473506,86452.0,86451.0,0.01120947]
[1740497521352,0.173538,86436.0,86435.0,0.0261654]
[1740497521585,0.80061997,86436.0,86435.0,0.0261654]
[1740497521854,0.25010211,86436.0,86435.0,0.0261654]
[1740497522061,0.24871543,86462.0,86435.0,0.0261654]
[1740497522287,0.24871543,86462.0,86448.0,0.37009837]
[1740497522526,0.22371543,86492.0,86457.0,0.37009837]
[1740497522777,0.173492,86459.0,86458.0,0.00161893]
[1740497522990,0.00161471,86459.0,86408.0,0.034776]
[1740497523221,0.173538,86436.0,86413.0,0.0492476]
[1740497523453,0.22371543,86436.0,86424.0,0.18460888]
[1740497523683,0.22371543,86455.0,86425.0,0.00161969]
[1740497523915,0.3279,86488.0,86437.0,0.0766]
[1740497524140,0.22371543,86489.0,86437.0,0.0766]
[1740497524141,0.3005036,86487.0,86438.0,0.17257059]
[1740497524419,0.26403551,86487.0,86446.0,0.37009837]
[1740497524661,0.26403551,86487.0,86447.0,0.11374753]
[1740497524888,0.0748725,86470.0,86414.0,0.1]
[1740497525115,0.18886205,86485.0,86438.0,0.01454085]
[1740497525342,0.18886205,86484.0,86451.0,0.37009837]
[1740497525564,0.07645377,86483.0,86441.0,0.0458]
[1740497525831,0.07645377,86483.0,86442.0,0.11374753]
[1740497526061,0.173494,86459.0,86425.0,0.231414]
[1740497526323,0.54490834,86482.0,86426.0,0.00161952]
[1740497526324,0.26507238,86458.0,86426.0,0.00161952]
[1740497526543,0.00161471,86457.0,86424.0,0.18298898]
[1740497526780,0.3,86456.0,86424.0,0.18298898]
[1740497527025,0.173531,86440.0,86424.0,0.18298898]
[1740497527237,0.173537,86437.0,86435.0,0.0171654]
[1740497527443,0.89532316,86436.0,86435.0,0.0171654]
[1740497527577,0.89370845,86436.0,86435.0,0.0171654]
[1740497528192,1.06099365,86436.0,86435.0,0.0171654]
[1740497529307,2.02809365,86436.0,86435.0,5e-07]
[1740497529529,2.02809365,86436.0,86420.0,0.20731248]
[1740497529530,0.1,86426.0,86420.0,0.20731248]
[1740497529742,0.1,86402.0,86335.0,0.0479]
[1740497529947,0.173675,86368.0,86333.0,0.0023]
[1740497530161,0.69043705,86368.0,86333.0,0.0023]
[1740497530566,0.99043705,86368.0,86333.0,0.0023]
[1740497530995,1.06571856,86368.0,86333.0,0.0023]
[1740497531262,0.173679,86366.0,86333.0,0.0023]
[1740497531497,0.76747135,86366.0,86333.0,0.0023]
[1740497531799,1.06585664,86366.0,86333.0,0.0023]
[1740497531941,0.59217764,86366.0,86333.0,0.0023]
[1740497532312,0.18886205,86389.0,86342.0,0.049]
[1740497532463,0.231547,86376.0,86342.0,0.049]
[1740497532673,0.07508043,86375.0,86342.0,0.049]
[1740497532847,0.07508043,86375.0,86356.0,0.231598]
[1740497533062,0.17522971,86398.0,86366.0,0.00162092]
[1740497533063,0.18886205,86398.0,86366.0,0.00162092]
[1740497533259,0.18886205,86402.0,86368.0,0.081]
[1740497533487,0.26297078,86402.0,86370.0,0.046]
[1740497533718,0.18886205,86418.0,86416.0,0.173577]
[1740497534038,0.19047676,86439.0,86404.0,0.0467]
[1740497534198,0.19047676,86438.0,86419.0,0.173572]
[1740497534358,0.07119558,86435.0,86376.0,0.37021826]
[1740497534563,0.3279,86445.0,86387.0,0.37021826]
[1740497534564,0.0727355,86430.0,86387.0,0.37021826]
[1740497534764,0.18886205,86433.0,86405.0,0.37021826]
[1740497535044,0.18886205,86461.0,86415.0,0.1255]
[1740497535158,0.18886205,86460.0,86423.0,0.37021826]
[1740497535363,0.18886205,86460.0,86424.0,0.00161949]
[1740497535569,0.18886205,86460.0,86425.0,0.16093131]
[1740497535570,0.0719068,86459.0,86425.0,0.16093131]
[1740497535767,0.07029209,86459.0,86425.0,0.11374753]
[1740497535972,0.18886205,86463.0,86428.0,0.37021826]
[1740497536177,0.231318,86461.0,86415.0,0.1255]
[1740497536381,0.07055976,86458.0,86415.0,0.1255]
[1740497536595,0.07066014,86456.0,86416.0,0.04219147]
[1740497536841,0.09902423,86452.0,86416.0,0.04219147]
[1740497537076,0.07082746,86451.0,86426.0,0.37021826]
[1740497537260,0.00161471,86450.0,86435.0,0.37021826]
[1740497537456,0.09902423,86452.0,86451.0,0.251208]
[1740497537457,0.04902423,86452.0,86451.0,0.251208]
[1740497537660,0.18886205,86490.0,86451.0,0.15067963]
[1740497537861,0.3279,86524.0,86491.0,0.173428]
[1740497538068,0.00161471,86523.0,86458.0,0.1]
[1740497538268,0.18886205,86491.0,86451.0,0.15067963]
[1740497538499,0.18886205,86503.0,86481.0,0.09249464]
[1740497538680,0.18886205,86502.0,86481.0,0.09249464]
[1740497538835,0.18886205,86502.0,86490.0,0.09249464]
[1740497539499,0.00161471,86523.0,86491.0,0.28717553]
[1740497539638,0.00161471,86543.0,86498.0,0.1]
[1740497539846,0.25390611,86542.0,86534.0,0.09249464]
[1740497540043,0.06387542,86542.0,86516.0,0.09249464]
[1740497540267,0.19047676,86541.0,86517.0,0.00924946]
[1740497540474,0.18886205,86541.0,86516.0,0.09249464]
[1740497540671,0.18886205,86541.0,86507.0,0.09249464]
[1740497540672,0.06612447,86540.0,86507.0,0.09249464]
[1740497540920,0.06450976,86540.0,86516.0,0.09249464]
[1740497541144,0.06450976,86540.0,86528.0,0.09249464]
[1740497541316,0.06612447,86540.0,86516.0,0.09249464]
[1740497541522,0.06612447,86540.0,86507.0,0.09249464]
[1740497541765,0.06484369,86535.0,86477.0,0.1]
[1740497541970,0.06484369,86535.0,86508.0,0.09249464]
[1740497542172,0.18886205,86571.0,86526.0,0.09249464]
[1740497542375,0.25365121,86570.0,86546.0,0.09249464]
[1740497542586,0.18886205,86569.0,86547.0,0.00161751]
[1740497542791,0.0016962,86579.0,86548.0,0.00941122]
[1740497542996,0.0016962,86579.0,86572.0,0.36969431]
[1740497543198,0.0016962,86579.0,86563.0,0.36969431]
[1740497543423,0.06327511,86573.0,86541.0,0.0492]
[1740497543679,0.06244031,86572.0,86557.0,0.36969431]
[1740497543864,0.06244031,86572.0,86557.0,0.03696943]
[1740497544064,0.06244031,86572.0,86545.0,0.173319]
[1740497544272,0.0017022,86573.0,86547.0,0.11374753]
[1740497544477,0.0017022,86573.0,86555.0,0.36969431]
[1740497544695,0.0017022,86573.0,86562.0,0.173286]
[1740497544927,0.0017022,86573.0,86564.0,0.36969431]
[1740497545135,0.0017022,86573.0,86565.0,0.11374753]
[1740497545342,0.0017022,86573.0,86549.0,0.1]
[1740497545343,0.0017022,86573.0,86529.0,0.25]
[1740497545554,0.0618064,86572.0,86550.0,0.173309]
[1740497545757,0.25228316,86572.0,86529.0,0.481135]
[1740497545983,0.25066845,86572.0,86539.0,0.231108]
[1740497546191,0.19047676,86571.0,86538.0,0.00924946]
[1740497546400,0.06277399,86564.0,86517.0,0.09249464]
[1740497546605,0.0634081,86556.0,86517.0,0.09249464]
[1740497546810,0.0634081,86556.0,86526.0,0.36969431]
[1740497547018,0.18886205,86572.0,86540.0,0.36969431]
[1740497547230,0.18886205,86574.0,86541.0,0.03858664]
[1740497547435,0.18886205,86574.0,86541.0,0.03696943]
[1740497547641,0.00161471,86572.0,86541.0,0.03696943]
[1740497547842,0.18886205,86574.0,86541.0,0.03696943]
[1740497548051,0.18886205,86613.0,86552.0,0.081]
[1740497548255,0.19047676,86612.0,86571.0,0.173266]
[1740497548465,0.19047676,86622.0,86572.0,0.11536413]
[1740497548710,0.173215,86598.0,86565.0,0.36969431]
[1740497548935,0.173205,86603.0,86566.0,0.11536438]
[1740497549146,0.00161471,86620.0,86571.0,0.173267]
[1740497549361,0.173175,86618.0,86572.0,0.16733008]
[1740497549553,0.18886205,86622.0,86572.0,0.16733008]
[1740497549789,0.18886205,86617.0,86578.0,0.277905]
[1740497550014,0.55872,86648.0,86607.0,0.36969431]
[1740497550015,0.18886205,86635.0,86607.0,0.36969431]
[1740497550260,0.18886205,86640.0,86608.0,0.11374753]
[1740497550495,0.18886205,86640.0,86616.0,0.36969431]
[1740497550728,0.18886205,86640.0,86609.0,0.11374753]
[1740497550729,0.00161471,86639.0,86617.0,0.03696943]
[1740497550974,0.18886205,86640.0,86589.0,0.46969431]
[1740497550975,0.05833914,86625.0,86589.0,0.36969431]
[1740497551209,0.19055725,86626.0,86603.0,0.36969431]
[1740497551446,0.0016952,86626.0,86613.0,0.173183]
[1740497551655,0.0016952,86626.0,86618.0,0.173173]
[1740497551890,0.0016952,86626.0,86619.0,0.02885365]
[1740497552095,0.0016952,86626.0,86625.0,0.17316]
[1740497552315,0.0016952,86626.0,86625.0,0.28690753]
[1740497552567,0.0016952,86626.0,86625.0,0.11374753]
[1740497552770,0.0016952,86626.0,86625.0,0.1153633]
[1740497552924,0.0016952,86626.0,86625.0,0.11374753]
[1740497553137,0.0016952,86626.0,86603.0,0.41859431]
[1740497553335,0.0016952,86626.0,86604.0,0.04185943]
[1740497553541,0.0016952,86626.0,86613.0,0.230912]
[1740497553866,0.0016952,86626.0,86614.0,0.11374753]
[1740497554085,0.0016952,86626.0,86625.0,0.17316]
[1740497554288,0.0016952,86626.0,86625.0,0.28852317]
[1740497554499,0.8671,86703.0,86625.0,0.28852317]
[1740497554500,0.30212364,86693.0,86629.0,0.1]
[1740497554706,0.59138955,86692.0,86651.0,0.36969431]
[1740497554917,0.5341,86691.0,86652.0,0.11536277]
[1740497555161,7e-05,86697.0,86663.0,0.0762]
[1740497555396,7e-05,86697.0,86671.0,0.36969431]
[1740497555620,7e-05,86697.0,86672.0,0.16370641]
[1740497555846,0.0540107,86696.0,86648.0,0.0762]
[1740497556209,7e-05,86697.0,86658.0,0.1]
[1740497556307,7e-05,86697.0,86658.0,0.230792]
[1740497556544,7e-05,86697.0,86677.0,0.173055]
[1740497556780,7e-05,86697.0,86678.0,0.11536227]
[1740497557020,7e-05,86697.0,86679.0,0.01153623]
[1740497557258,7e-05,86697.0,86680.0,0.11374753]
[1740497557490,7e-05,86697.0,86679.0,0.01153623]
[1740497557715,0.36969431,86691.0,86646.0,0.25]
[1740497557940,0.3494,86686.0,86646.0,0.25]
[1740497558166,0.1,86683.0,86606.0,0.0464]
[1740497558391,0.95169531,86685.0,86606.0,0.0464]
[1740497558392,0.1,86677.0,86606.0,0.0464]
[1740497558615,0.1,86677.0,86588.0,0.2]
[1740497558616,0.3,86644.0,86584.0,0.0464]
[1740497558853,0.53571471,86643.0,86585.0,0.00161632]
[1740497559091,0.05870564,86641.0,86591.0,0.11374753]
[1740497559316,0.05870564,86641.0,86595.0,0.23096]
[1740497559535,0.5341,86643.0,86603.0,0.1]
[1740497559708,0.90379431,86663.0,86604.0,0.11374753]
[1740497559922,0.3,86661.0,86604.0,0.11374753]
[1740497560113,0.230807,86653.0,86604.0,0.11374753]
[1740497560303,0.173112,86649.0,86605.0,0.01299076]
[1740497560506,0.173116,86647.0,86606.0,0.11374753]
[1740497560730,0.36969431,86644.0,86606.0,0.11374753]
[1740497560927,0.05797259,86643.0,86607.0,0.00161611]
[1740497561130,0.05797259,86643.0,86608.0,0.11374753]
[1740497561336,0.230834,86642.0,86609.0,0.01267384]
[1740497561513,0.173142,86634.0,86610.0,0.11374753]
[1740497561710,0.0581725,86633.0,86609.0,0.01267384]
[1740497561940,0.00161471,86632.0,86584.0,0.0464]
[1740497562141,0.173166,86622.0,86586.0,0.230984]
[1740497562500,0.59508692,86621.0,86564.0,0.1285]
[1740497562706,0.36969431,86630.0,86565.0,0.19018353]
[1740497562707,0.06013895,86614.0,86565.0,0.19018353]
[1740497562861,0.5341,86620.0,86570.0,0.11374753]
[1740497563073,0.005,86633.0,86579.0,0.1]
[1740497563279,0.5341,86648.0,86599.0,0.11374753]
[1740497563438,0.0456,86672.0,86615.0,0.1]
[1740497563675,1.26922364,86710.0,86639.0,0.36932949]
[1740497563676,0.001,86677.0,86639.0,0.36932949]
[1740497563842,0.001,86677.0,86640.0,0.00161527]
[1740497564061,0.001,86677.0,86653.0,0.173103]
[1740497564353,0.001,86677.0,86651.0,0.23081]
[1740497564354,0.230679,86701.0,86654.0,0.15575405]
[1740497564598,0.0016946,86661.0,86660.0,0.17309]
[1740497564758,0.0016946,86661.0,86654.0,0.0403913]
[1740497565124,0.0016946,86661.0,86643.0,0.0453]
[1740497565335,0.0016946,86661.0,86630.0,0.36932949]
[1740497565537,0.0016946,86661.0,86620.0,0.0452]
[1740497565538,0.001,86653.0,86620.0,0.0452]
[1740497565720,0.001,86658.0,86631.0,0.00161541]
[1740497565887,0.0016946,86661.0,86632.0,0.11374753]
[1740497566090,0.001,86656.0,86633.0,0.02868995]
[1740497566307,0.0016946,86661.0,86609.0,0.0807]
[1740497566308,0.001,86648.0,86613.0,0.034699]
[1740497566512,0.001,86632.0,86614.0,0.0016158]
[1740497566833,0.002,86633.0,86583.0,0.0831]
[1740497566834,0.001,86629.0,86601.0,0.00161613]
[1740497566989,0.002,86633.0,86632.0,0.001]
[1740497567341,1.154928,86713.0,86632.0,0.173145]
[1740497567342,0.001,86647.0,86632.0,0.173145]
[1740497567474,0.5341,86660.0,86633.0,0.13106203]
[1740497567690,0.001,86645.0,86633.0,0.0163145]
[1740497567889,0.001,86632.0,86614.0,0.007]
[1740497568088,0.36747949,86657.0,86616.0,0.173178]
[1740497568288,0.30212364,86660.0,86614.0,0.007]
[1740497568289,0.001,86640.0,86618.0,0.173172]
[1740497568497,0.001,86646.0,86619.0,0.11536333]
[1740497568715,0.001,86671.0,86627.0,0.11374753]
[1740497568925,0.001,86668.0,86644.0,0.17312]
[1740497569296,0.30212364,86675.0,86628.0,0.02127475]
[1740497569297,0.0026946,86661.0,86628.0,0.02127475]
[1740497569587,0.0026946,86661.0,86604.0,0.1]
[1740497569588,0.001,86657.0,86621.0,0.00161554]
[1740497569795,0.05614079,86660.0,86635.0,0.173138]
[1740497569796,0.001,86656.0,86635.0,0.173138]
[1740497569970,0.001,86654.0,86636.0,0.11374753]
[1740497570177,0.001,86654.0,86637.0,0.00161546]
[1740497570372,0.0016946,86661.0,86607.0,0.46832949]
[1740497570373,0.001,86649.0,86616.0,0.00161556]
[1740497570578,0.001,86649.0,86617.0,0.11374753]
[1740497570756,0.5341,86660.0,86628.0,0.001]
[1740497570934,0.001,86660.0,86631.0,0.11374753]
[1740497571134,0.230789,86659.0,86631.0,0.11374753]
[1740497571354,0.001,86653.0,86636.0,0.005]
[1740497571580,0.5351,86660.0,86637.0,0.11536321]
[1740497571789,0.001,86657.0,86638.0,0.01153632]
[1740497572201,0.001,86657.0,86616.0,0.230902]
[1740497572202,0.05647376,86656.0,86616.0,0.230902]
[1740497572402,0.05647376,86656.0,86597.0,0.099]
[1740497572403,0.001,86652.0,86617.0,0.11374753]
[1740497572607,0.001,86652.0,86617.0,0.11536318]
[1740497573051,0.05733966,86651.0,86617.0,0.17528964]
[1740497573402,0.05733966,86651.0,86617.0,0.05454211]
[1740497573403,0.001,86628.0,86617.0,0.05454211]
[1740497573575,0.174174,86618.0,86617.0,0.05954211]
[1740497573776,0.001,86618.0,86617.0,0.05954211]
[1740497573958,0.174174,86618.0,86617.0,0.05954211]
[1740497574391,0.001,86618.0,86617.0,0.005]
[1740497574595,0.001,86607.0,86591.0,0.00161643]
[1740497574719,0.001,86603.0,86591.0,0.00161643]
[1740497574954,0.05078741,86618.0,86588.0,0.00012439]
[1740497575163,0.05078741,86618.0,86589.0,0.11374753]
[1740497575354,0.230901,86617.0,86590.0,0.01138719]
[1740497575588,0.62643024,86621.0,86588.0,0.00012439]
[1740497575589,0.5341,86621.0,86591.0,0.115364]
[1740497575805,0.05155391,86620.0,86591.0,0.00161647]
[1740497575979,0.58565391,86621.0,86592.0,0.11374753]
[1740497576205,0.30212364,86628.0,86592.0,0.11374753]
[1740497576206,0.30212364,86628.0,86593.0,0.00161629]
[1740497576382,0.09233024,86649.0,86617.0,0.002]
[1740497576383,0.83622364,86648.0,86617.0,0.002]
[1740497576561,0.58550263,86647.0,86618.0,0.0232908]
[1740497576763,0.09233024,86640.0,86593.0,0.11374753]
[1740497576962,0.05085405,86629.0,86591.0,0.001]
[1740497577179,0.17319,86610.0,86591.0,0.001]
[1740497577391,0.53571471,86627.0,86586.0,0.01731862]
[1740497577627,0.09233024,86631.0,86552.0,0.0455]
[1740497577628,0.173232,86589.0,86552.0,0.0455]
[1740497577873,0.173232,86589.0,86544.0,0.25]
[1740497578098,0.173232,86589.0,86560.0,0.173288]
[1740497578331,0.22595272,86589.0,86562.0,0.173285]
[1740497578563,0.05272072,86589.0,86553.0,0.231072]
[1740497578932,0.230895,86620.0,86554.0,0.09394717]
[1740497579146,0.3,86609.0,86555.0,0.00161667]
[1740497579343,0.05205391,86608.0,86554.0,0.09233024]
[1740497579549,0.173232,86589.0,86554.0,0.09233024]
[1740497579752,0.83622364,86603.0,86555.0,0.00161686]
[1740497579949,0.05225394,86602.0,86588.0,0.00512439]
[1740497580152,0.05228728,86601.0,86588.0,0.00012439]
[1740497580375,0.5341,86619.0,86589.0,0.230976]
[1740497580573,0.005,86608.0,86590.0,0.03448479]
[1740497580731,0.005,86608.0,86588.0,0.00012439]
[1740497580732,0.05202058,86607.0,86588.0,0.00012439]
[1740497580932,0.173232,86589.0,86588.0,0.00012439]
[1740497581179,1.06379107,86589.0,86588.0,0.00012439]
[1740497581439,1.36217636,86589.0,86588.0,3.9e-07]
[1740497581640,0.473258,86576.0,86575.0,3e-07]
[1740497581841,1.36306944,86576.0,86575.0,3e-07]
[1740497582736,0.0535878,86576.0,86575.0,3e-07]
[1740497582890,0.83622364,86596.0,86575.0,3e-07]
[1740497583100,0.173258,86576.0,86575.0,3e-07]
[1740497583299,0.17487271,86576.0,86575.0,3e-07]
[1740497583519,0.23546051,86576.0,86575.0,0.0010003]
[1740497583707,0.173316,86547.0,86546.0,0.0008467]
[1740497583909,0.22883899,86547.0,86546.0,0.0008467]
[1740497584304,1.43416273,86547.0,86546.0,0.0008467]
[1740497584508,1.43416273,86547.0,86546.0,7e-07]
[1740497584712,1.43416273,86547.0,86501.0,0.0008467]
[1740497584713,0.173406,86502.0,86501.0,0.0008467]
[1740497584926,0.23193444,86502.0,86501.0,0.0008467]
[1740497585545,0.05852844,86502.0,86501.0,0.0008467]
[1740497585763,0.5341,86519.0,86501.0,0.0008467]
[1740497585950,0.05796051,86518.0,86501.0,0.0008467]
[1740497586465,0.00161471,86517.0,86501.0,0.0008467]
[1740497586652,0.173406,86502.0,86501.0,0.0008467]
[1740497586858,1.11404915,86502.0,86501.0,0.0008467]
[1740497587057,1.41455808,86502.0,86501.0,0.0008467]
[1740497587244,1.41455808,86502.0,86501.0,7e-07]
[1740497587433,1.41455808,86502.0,86488.0,3e-07]
[1740497587434,0.473432,86489.0,86488.0,3e-07]
[1740497587794,0.173506,86452.0,86451.0,0.0132487]
[1740497588030,0.23537749,86452.0,86451.0,0.0132487]
[1740497588232,0.76947749,86452.0,86451.0,0.0132487]
[1740497588487,1.15027749,86452.0,86451.0,0.0132487]
[1740497588720,0.473556,86427.0,86414.0,0.0008473]
[1740497588962,1.07120048,86427.0,86414.0,0.0008473]
[1740497589436,0.17358,86415.0,86414.0,0.0008473]
[1740497589640,0.53792785,86415.0,86414.0,0.0008473]
[1740497590358,1.07202785,86415.0,86414.0,0.0008473]
[1740497590804,1.37515149,86415.0,86414.0,3e-07]
[1740497591038,0.1,86413.0,86355.0,0.00162068]
[1740497591263,0.06488356,86402.0,86373.0,0.231552]
[1740497591488,0.06488356,86412.0,86374.0,0.37136392]
[1740497591723,0.5341,86433.0,86401.0,0.00817749]
[1740497591953,0.06418047,86432.0,86383.0,0.36974343]
[1740497592188,0.231398,86431.0,86401.0,0.00081561]
[1740497592427,0.5341,86448.0,86421.0,0.36974343]
[1740497592669,0.5341,86457.0,86431.0,0.36974343]
[1740497592906,0.5341,86469.0,86432.0,0.1145614]
[1740497593116,0.5341,86473.0,86433.0,0.00081308]
[1740497593344,0.5341,86473.0,86434.0,0.00081343]
[1740497593591,0.5341,86485.0,86458.0,0.36974343]
[1740497593826,0.5341,86505.0,86469.0,0.36974343]
[1740497594056,0.059297,86510.0,86478.0,0.36974343]
[1740497594399,0.059297,86510.0,86479.0,0.03778559]
[1740497594625,0.89429792,86503.0,86461.0,0.0468]
[1740497594845,0.05899623,86501.0,86449.0,0.36974343]
[1740497595052,0.3,86480.0,86440.0,0.36974343]
[1740497595265,0.06130291,86480.0,86451.0,0.36974343]
[1740497595477,0.5341,86486.0,86451.0,0.36974343]
[1740497595478,0.06130291,86479.0,86452.0,0.05513833]
[1740497595678,0.00202372,86478.0,86441.0,0.11374753]
[1740497595850,0.59543634,86477.0,86441.0,0.11456072]
[1740497596062,0.36136979,86475.0,86421.0,0.36974343]
[1740497596263,0.00202418,86474.0,86421.0,0.36974343]
[1740497596440,0.0616708,86473.0,86444.0,0.36974343]
[1740497596823,0.30212364,86473.0,86445.0,0.11456069]
[1740497596998,0.83622364,86491.0,86445.0,0.11374753]
[1740497597236,0.173479,86466.0,86445.0,0.11374753]
[1740497597437,0.06076787,86489.0,86453.0,0.36974343]
[1740497597592,0.06076787,86489.0,86436.0,0.04181739]
[1740497597593,0.09792709,86483.0,86455.0,0.231334]
[1740497597799,0.09792709,86483.0,86457.0,0.0473]
[1740497598176,0.231276,86477.0,86454.0,0.11374753]
[1740497598475,0.231269,86480.0,86454.0,0.11374753]
[1740497598687,0.09792709,86483.0,86454.0,0.11374753]
[1740497598860,0.173456,86477.0,86455.0,0.01137475]
[1740497599085,0.173458,86476.0,86455.0,0.12512228]
[1740497599274,0.06073443,86482.0,86455.0,0.12512228]
[1740497599480,0.09792709,86483.0,86465.0,0.09251657]
[1740497599704,0.09792709,86483.0,86474.0,0.09251657]
[1740497599872,0.09792709,86483.0,86466.0,0.11374753]
[1740497600087,0.09792709,86483.0,86465.0,0.09251657]
[1740497600669,0.06036664,86482.0,86431.0,0.0455]
[1740497600897,0.06036664,86482.0,86447.0,0.11374753]
[1740497601101,0.06036664,86482.0,86431.0,0.0455]
[1740497601102,0.59649035,86482.0,86443.0,0.034769]
[1740497601289,0.59577301,86481.0,86426.0,0.0754]
[1740497601488,0.06153702,86469.0,86426.0,0.0754]
[1740497601728,0.00202431,86468.0,86419.0,0.231429]